Workbook

Sheet MDR Data
A1: MOISTURE-DENSITY RELATIONSHIP TESTS
A2: North Dakota Department Of Transportation, Materials & Research Division
A3: SFN 10063 (Rev. 09-2015)
A5: Project Number | E5: PCN | H5: Station | J5: Depth Below Grade
A7: Offset From Centerline | H7: Type of Soil
A9: ND Test Designation | E9: Date | J9: Test Number
A11: Density | G11: Test Count
A13: Determination No. | G13: 1 | H13: 2 | I13: 3 | J13: 4 | K13: 5 | L13: 6
A14: A. | B14: Volume of Mold | F14: cu. ft.
A15: B. | B15: Weight of Mold + Compacted Soil | F15: lbs.
A16: C. | B16: Weight of Mold | F16: lbs.
A17: D. | B17: Weight of Compacted Soil = B - C | F17: lbs. | G17: =IF(G15>0,(G15-G16)," ") ->  | J17: =IF(J15>0,(J15-J16)," ") -> 
A18: E. | B18: Wet Density = D ÷ A | F18: lbs./cu.ft. | G18: =IFERROR(G17/G14,"") ->  | H18: =IF(H15>0,H17/H14," ") ->  | I18: =IF(I15>0,I17/I14," ") ->  | J18: =IF(J15>0,J17/J14," ") ->  | K18: =IF(K15>0,K17/K14," ") ->  | L18: =IF(L15>0,L17/L14," ") -> 
A19: F. | B19: Dry Density = (E x 100) ÷ (100 + L) | F19: lbs./cu.ft. | G19: =IFERROR((G18)/(1+G27),"") ->  | H19: =IFERROR((H18)/(1+H27),"") ->  | I19: =IFERROR((I18)/(1+I27),"") ->  | J19: =IFERROR((J18)/(1+J27),"") ->  | K19: =IFERROR((K18)/(1+K27),"") ->  | L19: =IFERROR(L18/(1+L27),"") -> 
A20: Moisture Content | I20: ND T99 or T180 Tested by:
A21: Container No.
A22: G. | B22: Wet Weight + Container | F22: gms.
A23: H. | B23: Dry Weight + Container | F23: gms.
A24: I. | B24: Moisture Loss = G - H | F24: gms. | G24: =IF(G22>0,(G22-G23)," ") -> 
A25: J. | B25: Tare Weight of Container | F25: gms.
A26: K. | B26: Dry Soil = H - J | F26: gms. | G26: =IF(G22>0,(G23-G25)," ") -> 
A27: L. | B27: % Moisture = (I ÷ K) x 100 | F27: % | G27: =IFERROR((G24/G26),"") -> 
H28: ND D4643, ND T217 or T265 Tested by:
L38: lbs./cu.ft.

Sheet MDR Report (hidden)
C1: Date Received: | F1: Project: | Q1: y=ax2+bx+c | V1: 4
C2: Sample #: | F2: Location: | P2: x | Q2: y | S2: ZAV | U2: 1 | V2: =D14 ->  | W2: =V2^2 -> 
C3: Sample ID: | F3: Boring #: | J3: Sieve | K3: Size | M3: Specifications | P3: =MIN($D$14:$D$17)-0.03 -> -0.03 | Q3: =$V$13*P3^2+$V$12*P3+$V$11 ->  | R3: =Q3*16.02 ->  | S3: =(62.43*$B$13)/(P3*$B$13+1) -> 194.5604155 | U3: 1
C4: Source: | F4: Depth: | J4: US | K4: mm | M4: Max | N4: Min | P4: =P3+0.001 -> -0.029 | S4: 193.9559601 | T4: M= | U4: 1
C5: ASTM D-2487, Unified Soils Classification System | J5: 6.00" | K5: 150 | P5: -0.028 | S5: 193.3552489 | U5: 1
C6: No Data Provided | J6: 4.00" | K6: 100 | P6: -0.027 | S6: 192.7582471 | U6: 1
C7: Sample Prepared: | D7: Moist: | E7: X | G7: Manual: | H7: X | J7: 3.00" | K7: 75 | P7: -0.026 | S7: 192.1649206 | U7: 1
D8: Dry: | G8: Mechanical: | J8: 2.50" | K8: 63 | P8: -0.025 | S8: 191.5752355
B9: Test Standard: | D9: AASHTO T 99: | G9: AASHTO T 180: | I9: Method | J9: 2.00" | K9: 50 | P9: -0.024 | S9: 190.9891584
D10: ASTM D 698: | G10: ASTM D 1557: | H10: X | I10: C | J10: 1.75" | K10: 45 | P10: -0.023 | S10: 190.4066563
E11: Dry | F11: Dry | J11: 1.50" | K11: 37.5 | P11: -0.022 | S11: 189.8276966 | T11: Y= | U11: =E14 ->  | V11: =MMULT(MINVERSE(MMULT(TRANSPOSE(U2:W5),U2:W5)),MMULT(TRANSPOSE(U2:W5),U11:U14)) ->  | W11: c
B12: Assumed Sp. Gr. | C12: Point | D12: Percent | E12: Density | F12: Density | G12: Maximum | I12: Optimum | J12: 1.25" | K12: 31.5 | P12: -0.021 | S12: 189.252247 | W12: b
B13: 2.85 | C13: Number | D13: Moisture | E13: lbs/ft3 | F13: Kgs/m3 | G13: Dry Density | I13: % Moisture | J13: 1.00" | K13: 25 | P13: -0.02 | S13: 188.6802757 | W13: a
C14: 1 | D14: ='MDR Data'!G27 ->  | E14: ='MDR Data'!G19 ->  | F14: =E14*16.02 ->  | G14: =MAX(Q3:Q240) ->  | H14: lbs/ft3 | I14: =INDEX(P3:P240,MATCH(G14,Q3:Q240,0),1) ->  | J14: 7/8" | K14: 22.4 | P14: -0.019 | S14: 188.1117513
C15: 2 | D15: ='MDR Data'!H27 ->  | E15: ='MDR Data'!H19 ->  | G15: =Dry_Density*16.02 ->  | H15: Kgs/m3 | J15: 3/4" | K15: 19 | P15: -0.018 | S15: 187.5466428
C16: 3 | D16: ='MDR Data'!I27 ->  | E16: ='MDR Data'!I19 ->  | J16: 5/8" | K16: 16 | P16: -0.017 | S16: 186.9849193
C17: 4 | D17: ='MDR Data'!J27 ->  | E17: ='MDR Data'!J19 ->  | J17: 1/2" | K17: 12.5 | P17: -0.016 | S17: 186.4265507 | V17: w=[(62.43*SG)-Dry]/(Dry*SG)
C18: 5 | D18: ='MDR Data'!K27 ->  | E18: ='MDR Data'!K19 ->  | J18: 3/8" | K18: 9.5 | P18: -0.015 | S18: 185.8715069
C19: 6 | D19: ='MDR Data'!L27 ->  | E19: ='MDR Data'!L19 ->  | J19: 1/4" | K19: 6.3 | P19: -0.014 | S19: 185.3197584 | V19: Dry=[(62.43*SG)/(W*SG+1)]
J20: #4 | K20: 4.75 | P20: -0.013 | S20: 184.7712758
J21: #8 | K21: 2.36 | P21: -0.012 | S21: 184.2260302
J22: #10 | K22: 2 | P22: -0.011 | S22: 183.6839932
J23: #16 | K23: 1.18 | P23: -0.01 | S23: 183.1451364
J24: #20 | K24: 0.85 | P24: -0.009 | S24: 182.6094319
J25: #30 | K25: 0.6 | P25: -0.008 | S25: 182.0768522
J26: #40 | K26: 0.425 | P26: -0.007 | S26: 181.54737
J27: #50 | K27: 0.3 | P27: -0.006 | S27: 181.0209584
J28: #60 | K28: 0.25 | P28: -0.005 | S28: 180.4975907
J29: #80 | K29: 0.18 | P29: -0.004 | S29: 179.9772405
J30: #100 | K30: 0.15 | P30: -0.003 | S30: 179.459882
J31: #140 | K31: 0.106 | P31: -0.002 | S31: 178.9454893
J32: #170 | K32: 0.09 | P32: -0.001 | S32: 178.434037
J33: #200 | K33: 0.075 | P33: 2.081668171e-17 | S33: 177.9255
P34: 0.001 | S34: 177.4198534
P35: =P34+0.001 -> 0.002 | S35: 176.9170727
P36: 0.003 | S36: 176.4171335
P37: 0.004 | S37: 175.9200119
P38: 0.005 | S38: 175.425684
P39: 0.006 | S39: 174.9341264
P40: 0.007 | S40: 174.4453159
J41: Specs: | M41: Meets Specs? | N41: n/a | P41: 0.008 | S41: 173.9592296
J42: No Specs | P42: 0.009 | S42: 173.4758446
B43: ASTM D-4718, Correction for Oversize Particles | H43: % Retained 3/4" | I43: =1-L15 ->  | P43: =P42+0.001 -> 0.01 | S43: 172.9951386
B44: % Retained | C44: Corrected | D44: Density | E44: Optimum | F44: % Retained | G44: Corrected | H44: Density | I44: Optimum | K44: % Gravel: | L44: 0 | M44: D(10): | N44: 0.0075 | P44: 0.011 | S44: 172.5170893
B45: 3/4" Sieve | C45: lbs/ft3 | D45: Kgs/m3 | E45: Moisture | F45: 3/4" Sieve | G45: lbs/ft3 | H45: Kgs/m3 | I45: Moisture | K45: % Sand: | L45: 0 | M45: D(30): | N45: 0.0225 | P45: 0.012 | S45: 172.0416747
B46: 0.05 | C46: =IF((1-B46)>=0.7,Dry_Density*Sp.Gr.*62.42/((Dry_Density*(1-(1-B46))+(Sp.Gr.*62.42*(1-B46)))),Dry_Density*Sp.Gr.*62.42/((Dry_Density*(1-0.7)+(Sp.Gr.*62.42*0.7)))) ->  | D46: =C46*16.02 ->  | E46: =((0.005*(B46))+(OptMoist*(1-B46))) ->  | F46: 0.2 | G46: =IF((1-F46)>=0.7,Dry_Density*Sp.Gr.*62.42/((Dry_Density*(1-(1-F46))+(Sp.Gr.*62.42*(1-F46)))),Dry_Density*Sp.Gr.*62.42/((Dry_Density*(1-0.7)+(Sp.Gr.*62.42*0.7)))) ->  | H46: =G46*16.02 ->  | I46: =((0.005*(F46))+(OptMoist*(1-F46))) ->  | K46: % Silt&Clay: | L46: 1 | M46: D(60): | N46: 0.045 | P46: 0.013 | S46: 171.5688732
B47: 0.1 | C47: =IF((1-B47)>=0.7,Dry_Density*Sp.Gr.*62.42/((Dry_Density*(1-(1-B47))+(Sp.Gr.*62.42*(1-B47)))),Dry_Density*Sp.Gr.*62.42/((Dry_Density*(1-0.7)+(Sp.Gr.*62.42*0.7)))) ->  | D47: =C47*16.02 ->  | E47: =((0.005*(B47))+(OptMoist*(1-B47))) ->  | F47: 0.25 | G47: =IF((1-F47)>=0.7,Dry_Density*Sp.Gr.*62.42/((Dry_Density*(1-(1-F47))+(Sp.Gr.*62.42*(1-F47)))),Dry_Density*Sp.Gr.*62.42/((Dry_Density*(1-0.7)+(Sp.Gr.*62.42*0.7)))) ->  | H47: =G47*16.02 ->  | I47: =((0.005*(F47))+(OptMoist*(1-F47))) ->  | K47: CC: | L47: 1.5 | M47: LL: | N47: n/a | P47: =P46+0.001 -> 0.014 | Q47: =$V$13*P47^2+$V$12*P47+$V$11 ->  | R47: =Q47*16.02 ->  | S47: =(62.43*$B$13)/(P47*$B$13+1) -> 171.0986633
B48: 0.15 | C48: =IF((1-B48)>=0.7,Dry_Density*Sp.Gr.*62.42/((Dry_Density*(1-(1-B48))+(Sp.Gr.*62.42*(1-B48)))),Dry_Density*Sp.Gr.*62.42/((Dry_Density*(1-0.7)+(Sp.Gr.*62.42*0.7)))) ->  | D48: =C48*16.02 ->  | E48: =((0.005*(B48))+(OptMoist*(1-B48))) ->  | F48: 0.3 | G48: =IF((1-F48)>=0.7,Dry_Density*Sp.Gr.*62.42/((Dry_Density*(1-(1-F48))+(Sp.Gr.*62.42*(1-F48)))),Dry_Density*Sp.Gr.*62.42/((Dry_Density*(1-0.7)+(Sp.Gr.*62.42*0.7)))) ->  | H48: =G48*16.02 ->  | I48: =((0.005*(F48))+(OptMoist*(1-F48))) ->  | K48: CU: | L48: 6 | M48: PL: | N48: n/a | P48: 0.015 | S48: 170.6310237
K49: FM: | L49: 0 | M49: PI: | N49: n/a | P49: 0.016 | S49: 170.1659334
B50: Copyright | C50: Spears Engineering & Technical Services PS, 1996-2005 | P50: 0.017 | S50: 169.7033716
P51: 0.018 | S51: 169.2433178
P52: 0.019 | S52: 168.7857516
A53: Moisture Max: | C53: =MAX(D14,D15,D16,D17) -> 0 | D53: =ROUND(C53+0.02,2) -> 0.02 | P53: 0.02 | S53: 168.3306528
A54: Moisture Min: | C54: =MIN(D14,D15,D16,D17) -> 0 | D54: =ROUND(C54-0.02,2) -> -0.02 | P54: 0.021 | S54: 167.8780016
A55: Major Unit: | D55: 0.02 | P55: 0.022 | S55: 167.4277783
A56: Minor Unit: | D56: 0.002 | P56: 0.023 | S56: 166.9799634
P57: 0.024 | S57: 166.5345376
A58: Dry Density Max: | C58: =MAX(E14,E15,E16,E17) -> 0 | D58: =ROUND(C58 + 1,0) -> 1 | P58: 0.025 | S58: 166.0914819
A59: Dry Density Min: | C59: =MIN(E14,E15,E16,E17) -> 0 | D59: =ROUND(C59 -2,0) -> -2 | P59: 0.026 | S59: 165.6507774
A60: Major Unit: | D60: 1 | P60: 0.027 | S60: 165.2124054
A61: Minor Unit: | D61: 0.5 | P61: 0.028 | S61: 164.7763475
P62: 0.029 | S62: 164.3425853
P63: 0.03 | S63: 163.9111009
P64: 0.031 | S64: 163.4818762
P65: 0.032 | S65: 163.0548937
P66: 0.033 | S66: 162.6301357
P67: 0.034 | S67: 162.207585
P68: 0.035 | S68: 161.7872244
P69: 0.036 | S69: 161.3690368
P70: 0.037 | S70: 160.9530056
P71: 0.038 | S71: 160.539114
P72: 0.039 | S72: 160.1273455
P73: 0.04 | S73: 159.717684
P74: 0.041 | S74: 159.3101133
P75: 0.042 | S75: 158.9046173
P76: 0.043 | S76: 158.5011803
P77: 0.044 | S77: 158.0997867
P78: 0.045 | S78: 157.700421
P79: =P78+0.001 -> 0.046 | Q79: =$V$13*P79^2+$V$12*P79+$V$11 ->  | R79: =Q79*16.02 ->  | S79: =(62.43*$B$13)/(P79*$B$13+1) -> 157.3030678
P80: 0.047 | S80: 156.907712
P81: 0.048 | S81: 156.5143385
P82: 0.049 | S82: 156.1229325
P83: 0.05 | S83: 155.7334792
P84: 0.051 | S84: 155.3459641
P85: 0.052 | S85: 154.9603728
P86: 0.053 | S86: 154.5766908
P87: 0.054 | S87: 154.1949042
P88: 0.055 | S88: 153.8149989
P89: 0.056 | S89: 153.436961
P90: 0.057 | S90: 153.0607768
P91: 0.058 | S91: 152.6864327
P92: 0.059 | S92: 152.3139152
P93: 0.06 | S93: 151.9432109
P94: 0.061 | S94: 151.5743068
P95: 0.062 | S95: 151.2071896
P96: 0.063 | S96: 150.8418465
P97: 0.064 | S97: 150.4782645
P98: 0.065 | S98: 150.1164311
P99: 0.066 | S99: 149.7563336
P100: 0.067 | S100: 149.3979596
P101: 0.068 | S101: 149.0412967
P102: 0.069 | S102: 148.6863327
P103: 0.07 | S103: 148.3330554
P104: 0.071 | S104: 147.981453
P105: 0.072 | S105: 147.6315134
P106: 0.073 | S106: 147.283225
P107: 0.074 | S107: 146.9365761
P108: 0.075 | S108: 146.5915551
P109: 0.076 | S109: 146.2481506
P110: 0.077 | S110: 145.9063512
P111: =P110+0.001 -> 0.078 | Q111: =$V$13*P111^2+$V$12*P111+$V$11 ->  | R111: =Q111*16.02 ->  | S111: =(62.43*$B$13)/(P111*$B$13+1) -> 145.5661458
P112: 0.079 | S112: 145.2275232
P113: 0.08 | S113: 144.8904723
P114: 0.081 | S114: 144.5549823
P115: 0.082 | S115: 144.2210424
P116: 0.083 | S116: 143.8886418
P117: 0.084 | S117: 143.5577699
P118: 0.085 | S118: 143.2284162
P119: 0.086 | S119: 142.9005702
P120: 0.087 | S120: 142.5742217
P121: 0.088 | S121: 142.2493604
P122: 0.089 | S122: 141.9259761
P123: 0.09 | S123: 141.6040589
P124: 0.091 | S124: 141.2835987
P125: 0.092 | S125: 140.9645856
P126: 0.093 | S126: 140.64701
P127: 0.094 | S127: 140.3308621
P128: 0.095 | S128: 140.0161322
P129: 0.096 | S129: 139.7028109
P130: 0.097 | S130: 139.3908888
P131: 0.098 | R131: =Q131*16.02 ->  | S131: =(62.43*$B$13)/(P131*$B$13+1) -> 139.0803564
P132: =P131+0.001 -> 0.099 | S132: 138.7712046
P133: 0.1 | S133: 138.4634241
P134: 0.101 | S134: 138.1570059
P135: 0.102 | S135: 137.8519408
P136: 0.103 | S136: 137.54822
P137: 0.104 | S137: 137.2458346
P138: 0.105 | S138: 136.9447758
P139: 0.106 | S139: 136.6450349
P140: 0.107 | S140: 136.3466033
P141: 0.108 | S141: 136.0494724
P142: 0.109 | S142: 135.7536337
P143: 0.11 | Q143: =$V$13*P143^2+$V$12*P143+$V$11 ->  | S143: 135.4590788
P144: 0.111 | S144: 135.1657994
P145: 0.112 | S145: 134.8737871
P146: 0.113 | S146: 134.5830339
P147: 0.114 | S147: 134.2935316
P148: 0.115 | S148: 134.0052721
P149: 0.116 | S149: 133.7182474
P150: 0.117 | S150: 133.4324497
P151: 0.118 | S151: 133.147871
P152: 0.119 | S152: 132.8645036
P153: 0.12 | S153: 132.5823398
P154: 0.121 | S154: 132.3013719
P155: 0.122 | S155: 132.0215923
P156: 0.123 | S156: 131.7429936
P157: 0.124 | S157: 131.4655682
P158: 0.125 | S158: 131.1893088
P159: 0.126 | S159: 130.9142079
P160: 0.127 | S160: 130.6402585
P161: 0.128 | S161: 130.3674531
P162: 0.129 | S162: 130.0957847
P163: 0.13 | S163: 129.8252463
P164: 0.131 | S164: 129.5558306
P165: 0.132 | S165: 129.2875309
P166: 0.133 | S166: 129.0203401
P167: 0.134 | S167: 128.7542514
P168: 0.135 | S168: 128.489258
P169: 0.136 | S169: 128.2253531
P170: 0.137 | S170: 127.9625301
P171: 0.138 | S171: 127.7007823
P172: 0.139 | S172: 127.4401031
P173: 0.14 | S173: 127.1804861
P174: 0.141 | S174: 126.9219246
P175: 0.142 | Q175: =$V$13*P175^2+$V$12*P175+$V$11 ->  | S175: 126.6644123
P176: 0.143 | S176: 126.4079429
P177: 0.144 | S177: 126.1525099
P178: 0.145 | S178: 125.8981072
P179: 0.146 | S179: 125.6447285
P180: 0.147 | S180: 125.3923676
P181: 0.148 | S181: 125.1410184
P182: 0.149 | S182: 124.8906749
P183: 0.15 | S183: 124.641331
P184: 0.151 | S184: 124.3929807
P185: 0.152 | S185: 124.1456182
P186: 0.153 | S186: 123.8992375
P187: 0.154 | S187: 123.6538328
P188: 0.155 | S188: 123.4093983
P189: 0.156 | S189: 123.1659283
P190: 0.157 | S190: 122.923417
P191: 0.158 | S191: 122.6818589
P192: 0.159 | S192: 122.4412483
P193: 0.16 | S193: 122.2015797
P194: 0.161 | S194: 121.9628474
P195: 0.162 | R195: =Q195*16.02 ->  | S195: =(62.43*$B$13)/(P195*$B$13+1) -> 121.7250462
P196: =P195+0.001 -> 0.163 | S196: 121.4881704
P197: 0.164 | S197: 121.2522148
P198: 0.165 | S198: 121.017174
P199: 0.166 | S199: 120.7830426
P200: 0.167 | S200: 120.5498154
... 40 more rows
